Cogmind - Beta 11.1 @@@ ROGUE MODE // 2022.11.22 @ 02:06:37 Player: ktur Result: Destroyed by D-53 Grenadier with Mini Grenade Launcher Performance ------------- Evolutions (1) 500 Regions Visited (4) 800 Robots Destroyed (78) 390 Value Destroyed (1654) 1654 Prototype IDs (6) 120 Alien Tech Used (0) 0 Bonus (0) 0 TOTAL SCORE: 3464 Bonus ------- None Cogmind --------- Core Integrity 0/400 Matter 263/300 Energy 229/280 System Corruption 0% Temperature Cool (78) Movement Treading (240) Ox1 Location -9/Mines Parts ------- > --- POWER (1) -------- Heavy Ion Engine > --- PROPULSION (2) --- Light Treads Light Treads > --- UTILITY (2) ------ Improved Heat Sink Large Storage Unit > --- WEAPON (4) ------- Beam Rifle Improved Medium Laser Improved Medium Laser Improved Medium Laser > --- INVENTORY (15) --- Heavy Ion Engine Heavy Ion Engine Light Treads Light Treads Light Treads High-capacity Matter Pod (200) Transport Network Coupler Shield Generator Hacking Suite Trap Extractor (0/4) Improved Medium Laser Datajack Hammer Peak State ------------ > --- POWER ------------ Heavy Ion Engine > --- PROPULSION ------- Light Treads Light Treads > --- UTILITY ---------- Improved Heat Sink Large Storage Unit > --- WEAPON ----------- Beam Rifle Improved Medium Laser Improved Medium Laser Improved Medium Laser > --- INVENTORY -------- Heavy Ion Engine Heavy Ion Engine Light Treads Light Treads Light Treads High-capacity Matter Pod Transport Network Coupler Shield Generator Hacking Suite Trap Extractor Improved Medium Laser Datajack Hammer [Rating: 22] Favorites ----------- Power Ion Engine Engine Ion Engine Propulsion Light Treads Treads Light Treads Leg Aluminum Leg Utility Large Storage Unit Device Improved Heat Sink Storage Large Storage Unit Protection Light Armor Plating Weapon EM Pulse Gun Energy Gun EM Pulse Gun Ballistic Gun Light Assault Rifle Build | -11 -10 -10 -9 -9 ------- Run | Scr Mat Min Mat Min Slots Evolved 2 | . . . 2 . Power . | . . . . . Propulsion . | . . . . . Utility . | . . . . . Weapon 2 | . . . 2 . Parts Attached 62 | 6 11 10 33 2 Power 9 | 1 1 1 6 . Engine 9 | 1 1 1 6 . Core . | . . . . . Reactor . | . . . . . Propulsion 19 | 2 1 5 11 . Treads 13 | 2 1 1 9 . Leg 6 | . . 4 2 . Wheel . | . . . . . Hover . | . . . . . Flight . | . . . . . Utility 10 | 1 6 . 3 . Device 3 | . 1 . 2 . Storage 4 | 1 2 . 1 . Processor . | . . . . . Hackware . | . . . . . Protection 3 | . 3 . . . Artifact . | . . . . . Weapon 24 | 2 3 4 13 2 Energy Gun 12 | 2 1 2 5 2 Energy Cannon . | . . . . . Ballistic Gun 12 | . 2 2 8 . Ballistic Cannon . | . . . . . Launcher . | . . . . . Special Weapon . | . . . . . Impact Weapon . | . . . . . Slashing Weapon . | . . . . . Piercing Weapon . | . . . . . Special Melee Weapon . | . . . . . Unidentified Prototypes 1 | . . . 1 . Parts Lost 23 | . 1 8 12 2 Power 3 | . . 1 2 . Propulsion 8 | . . 4 4 . Utility 2 | . 1 . 1 . Weapon 10 | . . 3 5 2 Highest Loss Streak 8 | . 1 4 8 2 To Critical Strikes . | . . . . . Average Slot Usage (%) 93 | . 90 96 95 100 Engine 12 | . 13 13 10 11 Treads 16 | . 28 1 15 22 Leg 8 | . . 25 6 . Device 7 | . . 14 9 11 Storage 12 | . 14 14 11 11 Protection 1 | . 4 . . . Energy Gun 18 | . 22 12 18 29 Ballistic Gun 14 | . 5 13 23 14 Naked Turns . | . . . . . Heaviest Build 41 | 14 30 29 41 41 Greatest Support 40 | 40 40 40 40 40 Greatest Overweight (x) 9 | . . 9 2 1 Average Overweight (x) . | . . 1 . 1 Largest Inventory Capacity 15 | 8 15 15 15 15 Average Capacity 13 | 6 10 15 15 15 Most Carried 15 | 6 15 15 15 15 Average Carried 12 | 3 9 14 14 14 Final Capacity 15 | 8 15 15 15 15 Final Carried 15 | 6 15 15 15 13 Class Distribution -------------------- 57% | Mutant 36% | Scavenger-Gunner 6% | Scavenger-Mutant Dominant Class ---------------- Mutant | -10/Materials Mutant | -10/Mines Scavenger-Gunner | -9/Materials Scavenger-Mutant | -9/Mines Resources | -11 -10 -10 -9 -9 ----------- Run | Scr Mat Min Mat Min Matter Collected 1371 | 260 376 173 562 . Remotely . | . . . . . Salvage Created 2619 | . 845 267 1449 58 Parts 161 | . 49 23 86 3 Haulers Intercepted 5 | . 2 . 3 . Recyclers Shooed 4 | . 3 1 . . Parts Field Recycled . | . . . . . Retrieved Matter . | . . . . . Parts Self-Destructed . | . . . . . Prevented . | . . . . . Kills | -11 -10 -10 -9 -9 ------- Run | Scr Mat Min Mat Min Combat Hostiles Destroyed 54 | . 14 11 28 1 Guns 51 | . 11 11 28 1 AOE 3 | . 3 . . . Classes Destroyed 11 | . 8 . 2 1 Worker 6 | . 2 . 4 . Builder 2 | . 1 . 1 . Tunneler 1 | . . . 1 . Hauler 5 | . 2 . 3 . Recycler 4 | . 1 . 3 . Operator 1 | . 1 . . . Watcher 5 | . 2 . 3 . Swarmer 21 | . 3 8 10 . Grunt 27 | . 11 3 13 . Sentry 5 | . . . 5 . Demolisher 1 | . . . . 1 Best Kill Streak 11 | . 6 3 11 1 Combat Bots Only 6 | . 5 3 6 1 Max Kills in Single Turn 2 | . 2 1 2 1 Gunslinging 1 | . . . 1 . Exploded 1 | . 1 . . . Melee . | . . . . . Uniques/NPCs Destroyed . | . . . . . Combat | -11 -10 -10 -9 -9 -------- Run | Scr Mat Min Mat Min Damage Taken 3139 | . 309 920 1419 491 Core 630 | . 31 199 249 151 Absorbed by Shields . | . . . . . Core Remaining (%) 54 | 100 . 8 . . Volleys Fired 216 | . 79 49 81 7 Largest 4 | . 2 2 4 4 Hottest 224 | . 80 80 164 224 Shots Fired 519 | . 131 83 280 25 Gun 519 | . 131 83 280 25 Cannon . | . . . . . Launcher . | . . . . . Special . | . . . . . Kinetic 250 | . 27 39 175 9 Thermal 153 | . . 32 105 16 Explosive . | . . . . . Electromagnetic 116 | . 104 12 . . Robot Hit Streak 16 | . 16 12 11 7 Robot Miss Streak 5 | . 5 4 4 3 Penetration Max . | . . . . . Secondary Targets 7 | . . 1 5 1 Max Gunslinging Chain 1 | . . 1 1 1 Shots Hit Robots 290 | . 77 55 143 15 Core Hits 123 | . 35 18 65 5 Critical Kills 1 | . . . 1 . Critical Parts Destroyed . | . . . . . Critical Strikes 4 | . 2 . 1 1 Burn 1 | . . . . 1 Destroy 1 | . . . 1 . Corrupt 2 | . 2 . . . Melee Attacks . | . . . . . Impact . | . . . . . Slashing . | . . . . . Piercing . | . . . . . Sneak Attacks . | . . . . . Combat Hostiles . | . . . . . Follow-up Attacks . | . . . . . Damage Inflicted 4204 | . 1371 665 1898 270 Guns 3838 | . 1036 665 1867 270 Cannons . | . . . . . Explosions 316 | . 316 . . . Melee . | . . . . . Ramming 50 | . 19 . 31 . Kinetic 1577 | . 190 309 951 127 Thermal 1601 | . 316 226 916 143 Explosive . | . . . . . Electromagnetic 976 | . 846 130 . . Impact . | . . . . . Slashing . | . . . . . Piercing . | . . . . . Highest Corruption . | . . . . . Average Corruption . | . . . . . Corruption Purged . | . . . . . Corruption Blocked . | . . . . . Overload Shots . | . . . . . Overflow Damage . | . . . . . Projectiles . | . . . . . Explosions . | . . . . . Melee . | . . . . . Knockbacks . | . . . . . Impact . | . . . . . Kinetic . | . . . . . Secondary . | . . . . . Self-Inflicted Damage . | . . . . . Shots . | . . . . . Rammed 10 | . 8 . 2 . Targets Rammed 13 | . 9 . 4 . Kicked 1 | . . . 1 . Crushed 2 | . 1 . 1 . Highest Temperature 287 | . 231 246 287 156 Average Temperature 98 | . 83 109 105 102 Received Heat Transfer 1149 | . 132 438 579 . Effects 1 | . . . 1 . Interference 1 | . . . 1 . Siege Activations . | . . . . . Robots Corrupted 1 | . 1 . . . Combat Hostiles . | . . . . . Parts Fried 4 | . 3 1 . . Impact Corruptions . | . . . . . Robots Melted . | . . . . . Combat Hostiles . | . . . . . Parts Melted . | . . . . . Heat Transferred 3363 | . 350 500 2106 407 Parts Sabotaged . | . . . . . Parts Stolen . | . . . . . Parts Stripped . | . . . . . Power Chain Reactions 5 | . 5 . . . Missiles Intercepted . | . . . . . Alert | -11 -10 -10 -9 -9 ------- Run | Scr Mat Min Mat Min Peak Influence 429 | . 372 195 429 102 Initial 72 | . . 41 9 72 Average 151 | . 135 115 198 85 Maximum Alert Level 2 | . 1 . 2 . Low Security (%) 77 | 100 81 100 59 100 Level 1 20 | . 18 . 35 . Level 2 1 | . . . 4 . Level 3 . | . . . . . Level 4 . | . . . . . Level 5 . | . . . . . High Security . | . . . . . Max Security . | . . . . . Squads Dispatched 7 | . 5 . 2 . Investigation 6 | . 4 . 2 . Extermination . | . . . . . Reinforcement 1 | . 1 . . . Assault . | . . . . . Garrison . | . . . . . Intercept . | . . . . . Searches Triggered . | . . . . . Construction Impeded . | . . . . . Haulers Reinforced . | . . . . . Active Scanning Responses . | . . . . . Cargo Convoy Interrupts . | . . . . . Stealth | -11 -10 -10 -9 -9 --------- Run | Scr Mat Min Mat Min Distress Signals 5 | . 2 . 3 . Communications Jammed . | . . . . . Distress Signals . | . . . . . Times Spotted 87 | . 33 15 37 2 Peak Tracking Total 6 | . 4 3 6 2 Tactical Retreats 3 | . 1 2 . . Traps | -11 -10 -10 -9 -9 ------- Run | Scr Mat Min Mat Min Traps Triggered 4 | . 3 . 1 . Indirectly . | . . . . . Trap Hack Attempts . | . . . . . Triggered . | . . . . . Disarmed . | . . . . . Reprogrammed . | . . . . . Reused . | . . . . . Traps Extracted . | . . . . . Installed . | . . . . . Triggered . | . . . . . Machines | -11 -10 -10 -9 -9 ---------- Run | Scr Mat Min Mat Min Machines Disabled 3 | . 2 1 . . Max in Single Turn 2 | . 2 1 . . Machines Sabotaged . | . . . . . Garrisons Compromised . | . . . . . Overloaded Fab Kills . | . . . . . Hacking | -11 -10 -10 -9 -9 --------- Run | Scr Mat Min Mat Min Machines Accessed 10 | . 7 . 3 . Terminals 7 | . 5 . 2 . Fabricators . | . . . . . Repair Stations . | . . . . . Recycling Units 3 | . 2 . 1 . Scanalyzers . | . . . . . Garrison Access . | . . . . . Total Hacks 35 | . 25 . 10 . Successful 21 | . 14 . 7 . Failed 14 | . 11 . 3 . Catastrophic . | . . . . . Database Lockouts . | . . . . . Manual 25 | . 20 . 5 . Terminals 32 | . 23 . 9 . Fabricators . | . . . . . Repair Stations . | . . . . . Recycling Units 3 | . 2 . 1 . Scanalyzers . | . . . . . Garrison Access . | . . . . . Terminal Hacks 13 | . 10 . 3 . Part Schematic 3 | . 3 . . . Robot Analysis 1 | . 1 . . . Prototype ID Bank 3 | . 2 . 1 . Unreport Threat 2 | . 1 . 1 . Locate Traps 1 | . 1 . . . Hauler Manifests 3 | . 2 . 1 . Fabricator Hacks . | . . . . . Repair Station Hacks . | . . . . . Recycling Unit Hacks . | . . . . . Scanalyzer . | . . . . . Garrison Access Hacks . | . . . . . Unauthorized Hacks 8 | . 4 . 4 . Terminals 5 | . 2 . 3 . Botnet 3 | . 1 . 2 . Operators 2 | . 1 . 1 . Fabricators . | . . . . . Repair Stations . | . . . . . Recycling Units 3 | . 2 . 1 . Tunnel 3 | . 2 . 1 . Scanalyzers . | . . . . . Garrison Access . | . . . . . Data Cores Recovered . | . . . . . Used . | . . . . . Hacking Detections 6 | . 4 . 2 . Full Trace Events 1 | . 1 . . . Feedback Events . | . . . . . Feedback Blocked . | . . . . . Robot Schematics Acquired . | . . . . . Robots Built . | . . . . . Authchips . | . . . . . Time . | . . . . . Total Robot Build Rating . | . . . . . Part Schematics Acquired 3 | . 3 . . . Parts Built . | . . . . . Authchips . | . . . . . Time . | . . . . . Total Part Build Rating . | . . . . . Parts Repaired . | . . . . . Time . | . . . . . Parts Recycled . | . . . . . Recycled Matter . | . . . . . Retrieved Matter . | . . . . . Retrieved Components . | . . . . . Parts Scanalyzed . | . . . . . Part Schematics Acquired . | . . . . . Parts Damaged . | . . . . . Bothacking | -11 -10 -10 -9 -9 ------------ Run | Scr Mat Min Mat Min Used RIF Installer . | . . . . . Robots Hacked . | . . . . . Non-combat . | . . . . . Combat . | . . . . . Robot Hacks Applied . | . . . . . Relay Couplers Released . | . . . . . Fabnet Peak Effective % . | . . . . . Robots Rewired . | . . . . . Allies Hacked . | . . . . . Hacks Repelled . | . . . . . Allies | -11 -10 -10 -9 -9 -------- Run | Scr Mat Min Mat Min Total Allies . | . . . . . Largest Group . | . . . . . Highest-Rated Group . | . . . . . Highest-Rated Ally . | . . . . . Total Orders . | . . . . . Ally Attacks . | . . . . . Total Damage . | . . . . . Kills . | . . . . . Allies Corrupted . | . . . . . Allies Melted . | . . . . . Intel | -11 -10 -10 -9 -9 ------- Run | Scr Mat Min Mat Min Robot Analysis Total 1 | . 1 . . . Derelict Logs Recovered . | . . . . . Drone Launches . | . . . . . Drone Recoveries . | . . . . . Exploration | -11 -10 -10 -9 -9 ------------- Run | Scr Mat Min Mat Min Turns Passed 3829 | 108 1366 847 1478 30 Spaces Moved 1667 | 60 684 362 558 3 Core 5 | 3 . 2 . . Treads 1158 | 57 684 8 406 3 Legs 504 | . . 352 152 . Wheels . | . . . . . Hover . | . . . . . Flight . | . . . . . Fastest Speed 50 | 50 160 160 160 240 Average Speed 180 | 154 160 191 201 240 Slowest Speed 500 | 160 160 500 260 240 Overloaded Moves . | . . . . . Propulsion Burnouts . | . . . . . Robots Hopped . | . . . . . Cave-ins Triggered . | . . . . . Exploration Rate (%) 48 | 5 94 81 53 9 Regions Visited 4 Branch Regions 2 Pre-discovered Areas 3 | . 2 . 1 . Known Exits Taken . | . . . . . Unknown Exits Taken 4 | 1 1 1 1 . Scrap Searched 1 | . . 1 . . Spaces Dug . | . . . . . Terrain Destroyed 17 | . 17 . . . Melee . | . . . . . Projectile . | . . . . . AOE 17 | . 17 . . . Terrain Rammed . | . . . . . Walls Destroyed . | . . . . . Machines Disabled . | . . . . . Actions | -11 -10 -10 -9 -9 --------- Run | Scr Mat Min Mat Min Total 2084 | 74 817 431 750 12 Wait 54 | . 15 4 35 . Move 1663 | 59 683 361 557 3 Hop . | . . . . . Pick Up 47 | 9 14 6 18 . Fast Attach 25 | 3 7 3 12 . Attach 22 | 3 1 5 11 2 Detach . | . . . . . Swap 15 | . 3 2 10 . Drop 29 | . 6 1 22 . Fire 216 | . 79 49 81 7 Melee . | . . . . . Ram . | . . . . . Kick 1 | . . . 1 . Crush 12 | . 9 . 3 . Escape Stasis . | . . . . . Rewire . | . . . . . Trap . | . . . . . Miscellaneous . | . . . . . Route ------- -11/Scrapyard -10/Materials (discovered 3 exits: *Mat x2 / [*Min]) -10/Mines -9/Materials (discovered 3 exits: [*Mat] / [*Min] / [*Sto]) -9/Mines (discovered 1 exit: [*Mat]) History --------- Turn | Location | Event 28 | -11/Scrapyard | Discovered new exit (range 15) 109 | -11/Scrapyard | Entered Materials 300 | -10/Materials | Build established: Mutant 466 | -10/Materials | Discovered new exit (range 11) 916 | -10/Materials | Discovered new exit (range 15) 1379 | -10/Materials | Discovered new exit (range 14) 1475 | -10/Materials | Entered Mines 1544 | -10/Mines | Lost 4 parts (1p1n2w) 1996 | -10/Mines | Discovered new exit (range 6) 2070 | -10/Mines | Core integrity fell below 50% 2153 | -10/Mines | Core integrity fell below 20% 2207 | -10/Mines | Lost 4 parts (3n1w) 2322 | -10/Mines | Entered Materials 2322 | -9/Materials | Evolved 2 slots: Weapon x2 2621 | -9/Materials | Build established: Scavenger-Gunner 2771 | -9/Materials | Core integrity fell below 50% 2814 | -9/Materials | Lost 8 parts (3n5w) 3141 | -9/Materials | Discovered new exit (range 13) 3489 | -9/Materials | Discovered new exit (range 15) 3759 | -9/Materials | Discovered new exit (range 15) 3800 | -9/Materials | Entered Mines 3801 | -9/Mines | Assembled infested the area 3805 | -9/Mines | Discovered new exit (range 6) 3825 | -9/Mines | Core integrity fell below 20% 3830 | -9/Mines | Destroyed by D-53 Grenadier with Mini Grenade Launcher Last Messages --------------- 03811_ K-01 Serf collects debris. 03811_ D-53 Grenadier destroyed. 03811_ Switching to secondary target: D-53 Grenadier. 03812_ K-01 Serf collects debris. 03815_ K-01 Serf cleans the Laser Drill. 03816_ K-01 Serf collects debris. 03816_ R-06 Scavenger collects Cmb. Airjet. 03816_ U-05 Engineer lays Concrete. 03819_ R-06 Scavenger collects Mni. Grenade Launcher. 03820_ U-05 Engineer lays Concrete. 03820_ Hvy. Assault Rifle destroyed. 03821_ K-01 Serf collects debris. 03821_ U-05 Engineer lays Concrete. 03822_ The unstable cave ceiling collapses. 03822_ Hvy. Assault Rifle destroyed. 03822_ R-06 Scavenger collects Launcher Guidance Computer. 03823_ K-01 Serf cleans the Laser Drill. 03825_ The unstable cave ceiling collapses. 03825_ K-01 Serf cleans the Laser Drill. 03830_ D-53 Grenadier suffers critical hit (Burn). Map ----- +----------------------------------------------------+ | | | | | | | | | | | | | | | | | | | | | | | | | | | | | | | | | | | | | | | ???????????????????????#######????????????????? | | ?????????????????????## #????????????????? | | ?????????????????????# #########????????? | | ????????????????????## ????????? | | ??????????????????### k??????????? | | ?????????????????## """ "???????????? | | ?????????????????# < @ """ ""??????????? | | ?????????? % r d """ """ #???????? | | ?????????? #???????? | | ???????????u### ## """ """ #???????? | | ??????????????## ???## """ ""??????????? | | ???????????????#??????# k""" "???????????? | | ??????????????????????#### ???????????? | | ?????????????????????????# ???????????? | | ?????????????????????????# ??????????? | | ?????????????????????????###########??????????? | | ??????????????????????????????????????????????? | | ??????????????????????????????????????????????? | | ??????????????????????????????????????????????? | | ??????????????????????????????????????????????? | | ??????????????????????????????????????????????? | | ??????????????????????????????????????????????? | | ??????????????????????????????????????????????? | | ??????????????????????????????????????????????? | | ??????????????????????????????????????????????? | | ??????????????????????????????????????????????? | | ??????????????????????????????????????????????? | | ??????????????????????????????????????????????? | | ??????????????????????????????????????????????? | | ??????????????????????????????????????????????? | | ??????????????????????????????????????????????? | +----------------------------------------------------+ Best States ------------- Heat Dissipation 42 Energy Generation 14 Energy Capacity 280 Matter Stores 300 Matter Capacity 300 Sight Range 16 Terrain Scan Density 10 Armor Coverage 150 Evasion (%) 40 Recoil Reduction 2 Item Schematics ----------------- Hcp. Storage Unit | -10/Materials | Hacked Huge Storage Unit | -10/Materials | Hacked Transport Network Coupler | -10/Materials | Hacked Robot Schematics ------------------ None Fabricated ------------ Nothing Alien Tech Used ----------------- None Achievements -------------- None Challenges ------------ None Game ------ Seed CannonImpulseDissipator Manual? 0 Play Time 00:19:17 Cumulative 588.4 hours Start 2022.11.22 @ 01:46:06 End 2022.11.22 @ 02:06:37 Sessions 1 Manual Loads 0 Difficulty Rogue Special Mode None Game No. 534 Rogue 534 Adventurer 0 Explorer 0 Win Type - Total 27 Types 14/2/7/2/0/0/1/1/0 Lore% 94 Gallery% 94 Achievement% 80 Wizard Run 0 Options --------- ASCII 0 Keyboard 0 Movement Arrows Keybinds 0 Fullscreen 1 Font 18/Smallcaps Map View 76x50 Tactical HUD 1 Map Filters NONE Filters NONE Steam 1 RUN: 3e1323a9-023d-442f-86d4-1b5d14b093f8